bitfinex/quotes_ETHUSD_20220309
["timestamp","ask_amount","ask_price","bid_price","bid_amount"]
[1646793096315,3.648,2620.5,2620.4,0.00449586]
[1646793096515,3.6472,2620.5,2620.4,0.00449586]
[1646793096767,4.9608,2620.5,2620.4,0.00449586]
[1646793096961,0.95505,2620.2,2619.4,0.6994147]
[1646793097164,0.95505,2619.9,2619.4,2.26298065]
[1646793097763,1.00926094,2619.7,2619.4,2.26298065]
[1646793098470,1.4432,2620.1,2619.4,2.26298065]
[1646793098668,1.4432,2620.1,2619.5,2.26298065]
[1646793098669,1.3,2620.1,2619.5,2.26298065]
[1646793098870,1.3,2620.1,2619.6,1.56356595]
[1646793099067,0.3,2619.8,2619.7,1.56356595]
[1646793099267,1.3,2620.1,2619.5,0.6994147]
[1646793099669,1.08177275,2619.9,2619.7,0.00359247]
[1646793099867,2.99179275,2619.9,2619.7,0.00359247]
[1646793100267,1.38177275,2619.9,2619.7,0.00359247]
[1646793100515,1.08177275,2619.9,2619.6,1.56356595]
[1646793100715,1.08177275,2619.9,2619.4,2.26298065]
[1646793100914,1.08177275,2619.9,2619.7,0.00483233]
[1646793101116,1.08177275,2619.9,2619.8,1.56356595]
[1646793101915,1.08177275,2619.9,2619.6,1.56356595]
[1646793102214,1.08177275,2619.9,2619.7,0.00483226]
[1646793102415,1.08177275,2619.9,2619.8,1.56356595]
[1646793102821,4.58177275,2619.9,2619.8,1.56356595]
[1646793103021,4.88177275,2619.9,2619.8,1.56356595]
[1646793103220,4.88177275,2619.9,2619.7,0.00469207]
[1646793103221,5.4084,2619.9,2619.7,0.00469207]
[1646793103522,3.03779697,2619.9,2619.8,1.56369283]
[1646793103723,5.37699697,2619.9,2619.7,0.00469207]
[1646793103922,3.5,2619.8,2619.7,0.00469207]
[1646793104174,4.60642,2619.8,2619.7,1.56374915]
[1646793104362,5.60802,2619.8,2619.0,2.26316385]
[1646793104562,5.60322,2619.8,2619.1,1.55956895]
[1646793104766,0.95509,2619.7,2619.0,0.6994147]
[1646793105066,1.25509,2619.7,2619.0,0.6994147]
[1646793105569,3.07419697,2619.9,2619.7,1.36786472]
[1646793105766,0.57192205,2620.2,2619.7,1.36786472]
[1646793105966,0.1464,2620.5,2619.7,1.36786472]
[1646793106167,3.5,2620.5,2619.7,1.36786472]
[1646793106368,2.05462,2620.6,2619.7,1.36786472]
[1646793106369,1.90982,2620.6,2619.7,1.36786472]
[1646793106666,1.10631396,2620.2,2619.7,1.36786472]
[1646793106865,1.10631396,2620.2,2620.0,0.00505911]
[1646793107269,3.5,2620.1,2620.0,0.00505911]
[1646793107923,2.50764396,2620.2,2619.7,1.36786472]
[1646793108126,2.36124396,2620.2,2619.9,0.00505918]
[1646793108426,2.06124396,2620.2,2619.9,0.00505918]
[1646793109029,2.06124396,2620.2,2619.7,1.36786472]
[1646793109227,2.06124396,2620.2,2619.9,0.00505918]
[1646793109430,2.62447747,2620.2,2619.9,0.00505918]
[1646793109728,3.62447747,2620.2,2619.9,0.00505918]
[1646793110129,3.62447747,2620.2,2619.7,1.36786472]
[1646793110328,2.51816351,2620.2,2619.7,1.36786472]
[1646793110529,2.51816351,2620.2,2619.9,0.00505918]
[1646793110729,1.56323351,2620.2,2619.9,0.00505918]
[1646793111131,0.56323351,2620.2,2619.9,0.00505918]
[1646793111332,0.56323351,2620.2,2619.7,1.36786472]
[1646793112070,1.51815351,2620.2,2619.7,1.36786472]
[1646793112270,5.01815351,2620.2,2619.7,1.36786472]
[1646793112469,1.96535351,2620.2,2619.7,1.36786472]
[1646793112671,6.31815351,2620.2,2619.7,1.36786472]
[1646793112870,6.46695351,2620.2,2619.7,1.36786472]
[1646793113074,6.46615351,2620.2,2619.7,1.36786472]
[1646793113274,6.31815351,2620.2,2619.7,1.36786472]
[1646793113474,2.81815351,2620.2,2619.7,1.36786472]
[1646793113777,1.81815351,2620.2,2619.7,1.36786472]
[1646793113974,2.81815351,2620.2,2619.7,1.36786472]
[1646793115176,1.81815351,2620.2,2619.8,0.00381472]
[1646793115419,4.5,2620.1,2619.7,1.36542585]
[1646793115620,1.05200805,2619.9,2619.7,1.36542585]
[1646793116016,0.3,2620.1,2619.7,1.36542585]
[1646793116216,1.51815351,2620.2,2619.7,1.36542585]
[1646793116418,2.51815351,2620.2,2619.7,1.36542585]
[1646793117616,1.51815351,2620.2,2619.7,1.36542585]
[1646793117817,2.51815351,2620.2,2619.7,1.36542585]
[1646793118020,1.51815351,2620.2,2619.7,1.36542585]
[1646793118221,2.51815351,2620.2,2619.7,1.36542585]
[1646793118423,0.95506,2620.1,2619.7,1.36542585]
[1646793118622,1.09394418,2620.0,2619.7,1.36542585]
[1646793119672,1.91009,2619.9,2619.7,1.36542585]
[1646793120072,1.91009,2619.9,2619.7,1.37047967]
[1646793120073,2.21009,2619.9,2619.7,1.37047967]
[1646793120673,0.95504,2620.1,2619.7,1.37047967]
[1646793120872,0.86323351,2620.2,2619.7,1.37047967]
[1646793121073,0.86323351,2620.2,2619.7,2.06484055]
[1646793121074,0.56323351,2620.2,2619.7,2.06484055]
[1646793121277,0.56323351,2620.2,2619.8,0.6994147]
[1646793121674,1.55265387,2620.2,2619.8,0.6994147]
[1646793122177,3.46256387,2620.2,2619.7,1.36542585]
[1646793122377,3.46256387,2620.2,2619.7,2.06484055]
[1646793122378,1.55265387,2620.2,2619.7,2.06484055]
[1646793122674,1.55265387,2620.2,2619.8,0.6994147]
[1646793122918,0.56323351,2620.2,2619.8,0.6994147]
[1646793123523,0.56323351,2620.2,2619.9,0.6994147]
[1646793124925,0.3,2620.5,2620.0,0.3822]
[1646793125124,0.3,2620.5,2620.1,3.8822]
[1646793125324,0.76722776,2621.0,2620.2,1.56327801]
[1646793125524,4.26722776,2621.0,2620.2,1.56327801]
[1646793125724,4.26722776,2621.0,2620.1,2.64489271]
[1646793125926,1.18401922,2620.8,2620.2,1.56327801]
[1646793126425,2.13867922,2620.8,2620.2,1.56327801]
[1646793126680,2.13867922,2620.8,2620.3,1.56327801]
[1646793126871,2.13867922,2620.8,2620.4,1.56327801]
[1646793127068,2.13867922,2620.8,2620.5,1.56327801]
[1646793127069,2.88216891,2620.8,2620.5,1.56327801]
[1646793127272,3.88216891,2620.8,2620.6,1.56327801]
[1646793127569,0.95481,2620.6,2619.9,0.6994147]
[1646793127769,0.95481,2620.6,2620.0,1.56328767]
[1646793127969,1.25481,2620.6,2620.1,1.56328767]
[1646793128179,1.20256913,2620.4,2620.2,1.56328767]
[1646793128373,1.20256913,2620.4,2620.3,1.56328767]
[1646793128574,1.20256913,2620.4,2619.8,2.26270237]
[1646793128775,1.20256913,2620.4,2619.9,1.56328767]
[1646793128974,0.3,2620.5,2619.8,0.6994147]
[1646793128975,0.3,2620.5,2620.0,1.51328767]
[1646793129175,0.3,2620.5,2619.8,0.6994147]
[1646793129376,1.25481,2620.6,2619.9,0.6994147]
[1646793129976,1.13442951,2620.3,2619.9,0.6994147]
[1646793130176,0.96324262,2620.5,2620.4,0.53305474]
[1646793130920,1.25481,2620.6,2620.4,0.53305474]
[1646793130921,1e-05,2620.6,2620.4,0.53305474]
[1646793131918,1.11064935,2620.5,2620.4,0.53305474]
[1646793132518,0.95484,2620.7,2620.4,0.53305474]
[1646793132719,0.92467496,2621.1,2620.4,0.53305474]
[1646793132720,0.01651222,2621.2,2620.5,3.5]
[1646793132919,0.01651222,2621.2,2620.4,0.53305474]
[1646793133121,0.58464825,2621.3,2620.4,4.03305474]
[1646793133322,0.58464825,2621.3,2620.4,0.53305474]
[1646793133722,0.97979159,2621.1,2620.4,0.53305474]
[1646793134576,1.52979159,2621.1,2620.4,0.53305474]
[1646793134878,1.08590056,2620.5,2620.4,0.53305474]
[1646793135978,1.93590056,2620.5,2620.4,0.53305474]
[1646793136179,2.12939025,2620.5,2620.4,0.53305474]
[1646793140333,1.93590056,2620.5,2620.4,0.53305474]
[1646793141033,1.08590056,2620.5,2620.4,0.53305474]
[1646793145819,0.74348969,2620.9,2620.4,0.53305474]
[1646793145820,0.95462,2621.0,2620.4,0.53305474]
[1646793146026,0.01651191,2621.2,2620.4,0.53305474]
[1646793146217,0.01651191,2621.2,2620.5,0.3822]
[1646793146617,0.01651191,2621.2,2620.4,0.53305474]
[1646793146818,1.0883471,2621.1,2620.4,0.53305474]
[1646793147420,0.97101348,2621.2,2620.4,0.53305474]
[1646793147621,0.9545,2621.2,2620.4,0.53305474]
[1646793148623,1.16950382,2620.9,2620.4,0.53305474]
[1646793149197,1.16950382,2620.9,2620.5,1.56298752]
[1646793150386,0.95459,2621.0,2620.5,1.56298752]
[1646793150783,0.96743537,2621.2,2620.5,1.56298752]
[1646793151385,4.78836582,2621.6,2620.5,1.56298752]
[1646793151588,0.979336,2621.3,2620.5,1.56298752]
[1646793153731,1.933926,2621.3,2620.5,1.56298752]
[1646793153926,0.95463,2621.1,2620.5,1.56298752]
[1646793154127,0.88196267,2620.9,2620.5,1.56298752]
[1646793155726,0.01308247,2621.2,2620.5,1.94518752]
[1646793155927,0.01308247,2621.2,2620.6,1.94518752]
[1646793156131,0.95441,2621.4,2620.7,1.56298752]
[1646793156326,0.01308247,2621.2,2620.7,1.56298752]
[1646793156527,0.01308247,2621.2,2620.8,1.56298752]
[1646793156770,0.01308247,2621.2,2620.9,1.56298752]
[1646793156969,0.01308247,2621.2,2620.4,1.65825474]
[1646793156970,1.17620565,2621.0,2620.4,1.65825474]
[1646793157172,1.17620565,2621.0,2620.5,1.5629602]
[1646793157771,0.95451,2621.1,2620.5,1.5629602]
[1646793157975,5.40984,2621.5,2620.5,1.5629602]
[1646793158175,1.90888,2621.5,2620.5,1.5629602]
[1646793158375,1.90888,2621.5,2620.5,1.56186274]
[1646793158676,0.95441,2621.4,2620.5,1.56186274]
[1646793159275,1.08500568,2621.3,2620.5,1.56186274]
[1646793160562,4.58500568,2621.3,2620.5,1.56186274]
[1646793160759,1.08500568,2621.3,2620.5,1.56186274]
[1646793162362,4.58500568,2621.3,2620.5,1.56186274]
[1646793162762,5.58500568,2621.3,2620.5,1.56186274]
[1646793162961,2.08500568,2621.3,2620.5,1.56186274]
[1646793163365,1.08500568,2621.3,2620.5,1.56186274]
[1646793164579,4.58500568,2621.3,2620.5,1.56186274]
[1646793165583,0.95353909,2620.8,2620.5,1.56186274]
[1646793165787,0.95452,2621.1,2620.5,1.56186274]
[1646793174475,1.25452,2621.1,2620.5,1.56186274]
[1646793174879,0.95452,2621.1,2620.5,1.56186274]
[1646793175075,1.25452,2621.1,2620.5,1.56186274]
[1646793175518,0.95452,2621.1,2620.5,1.56186274]
[1646793175719,1.25452,2621.1,2620.5,1.56186274]
[1646793176119,0.95452,2621.1,2620.5,1.56186274]
[1646793176318,1.25452,2621.1,2620.5,1.56186274]
[1646793177118,0.95452,2621.1,2620.5,1.56186274]
[1646793177718,1.25452,2621.1,2620.5,1.56186274]
[1646793178122,0.95452,2621.1,2620.5,1.56186274]
[1646793178322,1.25452,2621.1,2620.5,1.56186274]
[1646793179181,0.95452,2621.1,2620.5,1.56186274]
[1646793179372,1.04663664,2620.9,2620.5,1.56186274]
[1646793180774,1.25452,2621.1,2620.5,1.56186274]
[1646793181381,0.95452,2621.1,2620.5,1.56186274]
[1646793181574,1.25452,2621.1,2620.5,1.56186274]
[1646793181775,1.09375576,2620.9,2620.5,1.56186274]
[1646793183657,0.3,2621.0,2620.5,1.56186274]
[1646793184059,1.25452,2621.1,2620.5,1.56186274]
[1646793184258,4.45452,2621.1,2620.5,1.56186274]
[1646793184458,4.75452,2621.1,2620.5,1.56186274]
[1646793184963,0.95452,2621.1,2620.5,1.56186274]
[1646793185157,0.89255638,2620.8,2620.5,1.56186274]
[1646793185358,1.84719638,2620.8,2620.5,1.56186274]
[1646793185760,0.3,2620.9,2620.5,1.56186274]
[1646793186161,1.90919,2621.2,2620.4,0.53305474]
[1646793186162,1.90919,2621.2,2620.4,2.09491748]
[1646793186360,1.92266499,2621.2,2620.5,1.56186274]
[1646793187185,0.95451,2621.1,2620.5,1.56186274]
[1646793187383,1.25451,2621.1,2620.5,1.56186274]
[1646793187785,0.3,2621.1,2620.5,1.56186274]
[1646793188188,0.88944039,2621.3,2620.5,1.56186274]
[1646793188389,5.31411535,2621.3,2620.5,1.56186274]
[1646793188692,5.31411535,2621.3,2620.5,1.56087185]
[1646793188693,0.92467496,2621.0,2620.5,1.56087185]
[1646793188891,2.65682876,2620.9,2620.5,1.56087185]
[1646793189292,3.65682876,2620.9,2620.5,1.56087185]
[1646793189593,6.15682876,2620.9,2620.5,1.56087185]
[1646793189793,7.15682876,2620.9,2620.5,1.56087185]
[1646793189991,8.11162876,2620.9,2620.5,1.56087185]
[1646793190190,1.90959,2620.8,2620.5,1.56087185]
[1646793190438,2.45959,2620.8,2620.5,1.56087185]
[1646793191042,0.57569686,2620.9,2620.5,1.56087185]
[1646793191238,0.1448,2621.2,2620.5,1.56087185]
[1646793191239,1.89262566,2621.2,2620.5,1.56087185]
[1646793191436,0.9679507,2621.2,2620.5,1.56087185]
[1646793191636,0.9679507,2621.2,2620.5,1.94307185]
[1646793191834,0.0135007,2621.2,2620.5,0.6822]
[1646793192042,2.69828639,2621.6,2620.5,0.8729]
[1646793192235,1.77361143,2621.6,2620.5,1.5723147]
[1646793192541,0.01349524,2621.4,2620.6,7.56002921]
[1646793192736,0.01349524,2621.4,2620.8,3.3822]
[1646793192942,0.01349524,2621.4,2621.0,0.3822]
[1646793193149,0.00096,2621.8,2621.4,0.01582813]
[1646793193342,0.00096,2622.1,2621.4,0.01582813]
[1646793193543,0.00096,2622.3,2621.4,0.01582813]
[1646793193743,0.01349524,2621.6,2621.4,0.01582813]
[1646793194583,3.50096,2622.3,2621.4,0.01582813]
[1646793194784,1.90824,2622.4,2621.4,0.01582813]
[1646793195788,1.09279237,2622.6,2621.7,0.3822]
[1646793195990,0.00334085,2622.0,2621.9,0.3822]
[1646793196387,0.00334085,2622.0,2621.9,0.6822]
[1646793196988,0.16811741,2622.6,2621.9,4.1822]
[1646793197188,0.00334085,2622.1,2621.8,0.5727]
[1646793197387,0.00334085,2622.1,2622.0,0.3822]
[1646793197964,0.00334085,2622.1,2621.9,0.6822]
[1646793198169,0.16715741,2622.6,2621.9,1.6822]
[1646793198369,0.00334085,2622.2,2621.9,1.6822]
[1646793198568,0.00334085,2622.2,2621.9,0.6822]
[1646793198774,0.00334085,2622.2,2622.1,11.69]
[1646793198971,0.00334085,2622.2,2622.1,15.5722]
[1646793199169,0.00334085,2622.2,2622.1,17.1222]
[1646793199371,0.3818,2623.6,2622.1,17.1222]
[1646793199372,1.0511997,2623.4,2622.1,17.1222]
[1646793199569,0.00334824,2622.3,2622.1,17.1222]
[1646793199769,0.00334824,2622.3,2622.2,15.8722]
[1646793199971,0.00334824,2622.3,2622.2,16.4222]
[1646793200171,0.00334824,2622.3,2622.2,17.4222]
[1646793200372,0.01339093,2622.7,2622.2,17.4222]
[1646793200572,0.00096,2623.3,2622.2,17.4222]
[1646793200773,0.56243921,2623.7,2622.2,17.4222]
[1646793200774,0.001009,2622.4,2622.3,12.0722]
[1646793200977,0.001009,2622.4,2622.3,16.1222]
[1646793201172,0.001009,2622.4,2622.3,17.1222]
[1646793201374,0.001009,2622.4,2622.3,13.6222]
[1646793201573,1.10978399,2623.1,2622.3,1.9322]
[1646793201794,1.10978399,2623.1,2622.3,0.9322]
[1646793201997,0.00334824,2622.5,2622.3,0.9322]
[1646793202795,1.11074399,2623.1,2622.3,0.9322]
[1646793202999,1.10978399,2623.1,2622.3,0.9322]
[1646793203199,0.00387015,2622.5,2622.3,0.55]
[1646793203399,0.00387015,2622.5,2622.2,1.3]
[1646793203602,0.00387015,2622.5,2622.0,0.3]
[1646793203799,0.00387015,2622.5,2621.9,1.4536]
[1646793204001,1.11074399,2623.1,2621.9,1.1536]
[1646793204002,3.5,2623.0,2621.9,1.1536]
[1646793204199,0.95384,2622.9,2621.9,1.1536]
[1646793204401,0.00387015,2622.4,2621.9,1.1536]
[1646793204605,0.00387015,2622.4,2621.8,0.5727]
[1646793204801,0.00387015,2622.4,2621.8,0.1905]
[1646793205001,0.00387015,2622.4,2621.4,2.48302813]
[1646793205202,1.50791015,2622.4,2621.4,2.48302813]
[1646793205440,3.69478527,2622.3,2621.4,2.48302813]
[1646793205638,0.55387015,2622.2,2621.4,2.48302813]
[1646793205839,1.00902452,2621.7,2621.4,0.01582813]
[1646793206039,1.15294542,2622.2,2621.4,0.01582813]
[1646793206243,0.95816015,2622.2,2621.4,0.01582813]
[1646793206842,0.95429,2622.2,2621.4,0.01582813]
[1646793207043,0.00324045,2621.9,2621.4,0.01582813]
[1646793207743,0.95421,2621.9,2621.4,0.01582813]
[1646793207942,0.00324045,2621.8,2621.4,0.01582813]
[1646793208544,0.00324045,2621.8,2621.4,0.00957813]
[1646793208746,1.04487384,2621.6,2621.4,0.00957813]
[1646793208946,0.95421,2621.9,2621.4,0.00957813]
[1646793209204,0.00324045,2621.7,2621.4,0.00957813]
[1646793210195,0.95421,2621.9,2621.4,0.00957813]
[1646793210394,0.00337073,2621.7,2621.4,0.00957813]
[1646793211393,0.95412,2622.2,2621.4,0.00957813]
[1646793211594,0.00337073,2621.7,2621.4,0.00957813]
[1646793212594,1.83697383,2622.2,2621.4,0.00957813]
[1646793212793,0.00337073,2621.7,2621.4,0.00957813]
[1646793213637,0.00337073,2621.7,2621.4,3.89177813]
[1646793213837,0.96760031,2622.2,2621.7,0.00728832]
[1646793213838,0.95412,2622.2,2621.7,0.00728832]
[1646793214037,0.96748387,2622.2,2621.7,0.00728832]
[1646793214637,0.01336387,2622.2,2621.7,0.00728832]
[1646793215340,0.01336387,2622.2,2622.1,0.00108455]
[1646793215542,0.01336445,2622.5,2622.2,0.3822]
[1646793215739,0.01224351,2622.5,2622.4,0.3822]
[1646793215940,0.01224351,2622.5,2622.4,4.7322]
[1646793216139,0.3816,2623.7,2623.0,0.88410541]
[1646793216140,0.00096,2623.6,2623.0,0.88410541]
[1646793216342,2.86706249,2624.5,2623.2,11.69]
[1646793216343,0.00096,2623.9,2623.2,11.69]
[1646793216538,5.44941419,2624.2,2623.3,15.19]
[1646793216793,1.59003875,2624.2,2623.4,12.6431334]
[1646793216992,0.92563496,2624.6,2623.4,12.6431334]
[1646793217195,0.92467496,2624.6,2623.2,4.4322]
[1646793217395,0.92467496,2624.6,2623.2,16.1222]
[1646793217794,0.00100777,2624.1,2623.2,16.1222]
[1646793218197,0.00100777,2624.1,2623.4,11.69]
[1646793218198,0.96397774,2624.1,2623.4,11.69]
[1646793218399,0.00100777,2624.1,2623.3,3.5]
[1646793218601,0.00096,2624.5,2623.3,3.5]
[1646793218799,0.00100777,2623.9,2623.3,15.19]
[1646793219101,0.00100777,2623.9,2623.3,3.5]
[1646793219701,1.06036448,2624.1,2623.3,3.5]
[1646793219901,0.95335,2624.4,2623.3,3.5]
[1646793220104,0.00335642,2623.7,2623.3,15.19]
[1646793220302,0.00335642,2623.7,2623.2,0.3822]
[1646793220536,0.00335642,2623.7,2623.4,11.69]
[1646793220734,0.00335642,2623.7,2623.6,12.0722]
[1646793220937,0.95325,2624.6,2623.6,15.6805]
[1646793220938,0.91650938,2624.5,2623.6,15.6805]
[1646793221139,0.91650938,2624.5,2623.7,0.1905]
[1646793221339,0.014417,2624.1,2623.7,0.1905]
[1646793221536,1.12236986,2624.1,2623.7,0.1905]
[1646793221737,1.12236986,2624.1,2623.6,0.1905]
[1646793221938,1.12236986,2624.1,2623.5,0.1905]
[1646793222141,1.10795286,2624.1,2623.5,0.1905]
[1646793222540,0.00360479,2624.0,2623.5,0.1905]
[1646793223345,0.95421,2624.6,2623.5,0.1905]
[1646793223544,0.95325,2624.6,2623.5,0.1905]
[1646793223746,0.00360479,2623.9,2623.5,0.1905]
[1646793224591,0.00096,2624.5,2623.5,0.1905]
[1646793224793,0.00328616,2623.8,2623.5,0.1905]
[1646793225793,0.00096,2624.7,2623.5,11.8805]
[1646793225996,1.90667,2624.8,2623.6,15.19]
[1646793225997,0.00328616,2623.8,2623.6,15.19]
[1646793226194,0.00328616,2623.8,2623.6,11.69]
[1646793226492,0.00328616,2623.8,2623.6,3.5]
[1646793226695,0.00328616,2623.8,2623.5,12.2627]
[1646793226894,0.01314267,2624.2,2623.7,11.69]
[1646793227094,1.00802219,2624.4,2623.6,3.5]
[1646793227295,0.00328616,2623.8,2623.6,3.5]
[1646793227494,0.00328616,2623.8,2623.7,0.1905]
[1646793227694,0.00328616,2623.8,2623.7,12.6222]
[1646793227938,0.00328616,2623.8,2623.7,16.1222]
[1646793228139,0.0175534,2625.2,2623.7,17.1222]
[1646793228539,0.0175534,2625.2,2624.1,11.69]
[1646793228540,0.01342776,2624.3,2624.1,11.69]
[1646793228739,0.01342776,2624.3,2624.2,15.74]
[1646793228941,0.01342776,2624.3,2624.2,15.19]
[1646793229140,0.01342776,2624.3,2624.2,3.5]
[1646793229341,0.00096,2625.0,2624.2,15.19]
[1646793229541,1.22281563,2625.1,2624.2,15.19]
[1646793229742,0.00335744,2624.4,2624.2,15.19]
[1646793229946,0.00335744,2624.4,2624.3,11.69]
[1646793230546,1.5,2624.7,2624.3,15.19]
[1646793230766,0.00335744,2624.5,2624.4,0.3822]
[1646793230947,0.01949318,2625.4,2624.6,11.69]
[1646793230948,0.01342776,2624.9,2624.6,11.69]
[1646793231142,0.01342776,2624.9,2624.8,11.69]
[1646793231343,0.01342776,2624.9,2624.8,12.24]
[1646793231786,0.01853318,2625.4,2624.8,12.24]
[1646793232085,1.15292917,2625.2,2624.8,0.55]
[1646793232288,1.15292917,2625.2,2624.4,0.1904]
[1646793232590,1.15292917,2625.2,2624.1,10.0033]
[1646793232786,1.15292917,2625.2,2624.1,9.4533]
[1646793232987,1.15292917,2625.2,2624.1,13.9062204]
[1646793233290,1.15292917,2625.2,2624.1,2.0939204]
[1646793233892,1.15292917,2625.2,2624.1,2.3939204]
[1646793234088,0.0165934,2625.2,2624.3,11.69]
[1646793234290,0.0165934,2625.2,2624.6,11.69]
[1646793234487,0.0165934,2625.2,2624.6,0.3]
[1646793235089,0.0165934,2625.2,2624.5,11.99]
[1646793235289,0.0165934,2625.2,2624.5,12.99]
[1646793235734,0.01853318,2625.4,2624.7,12.6427329]
[1646793235735,0.00407568,2625.0,2624.7,12.6427329]
[1646793235937,0.00407568,2625.0,2624.7,0.9527329]
[1646793236234,0.00407568,2625.0,2624.7,1.2527329]
[1646793236634,0.03706636,2625.4,2624.7,1.2527329]
[1646793236835,0.00407568,2625.0,2624.8,3.5]
[1646793237036,0.00407568,2625.0,2624.9,0.13819997]
[1646793237237,0.0571941,2625.5,2625.2,5.0]
[1646793237437,0.0571941,2625.5,2625.3,12.24]
[1646793237638,0.0571941,2625.5,2625.0,0.55]
[1646793237838,0.0571941,2625.5,2624.9,0.13819997]
[1646793238039,9.41e-05,2625.5,2624.9,0.13819997]
[1646793238238,9.41e-05,2625.5,2625.3,11.69]
[1646793238443,0.05842448,2625.6,2625.5,11.69]
[1646793238739,0.01467172,2625.6,2625.2,5.7049133]
[1646793239286,0.01467172,2625.6,2625.3,11.69]
[1646793239485,0.01467172,2625.6,2625.2,3.5049133]
[1646793239687,0.01467172,2625.6,2625.2,0.3]
[1646793239886,0.01467172,2625.6,2625.1,0.3]
[1646793240084,0.01467172,2625.6,2624.9,4.12859997]
[1646793240288,0.01467172,2625.6,2625.0,11.69]
[1646793240485,0.01467172,2625.6,2625.1,0.00504168]
[1646793240486,0.00402467,2625.5,2625.1,0.00504168]
[1646793241387,0.01467172,2625.6,2624.9,0.13819997]
[1646793241788,0.00402459,2625.5,2625.1,0.00504165]
[1646793242387,0.00402459,2625.5,2625.1,11.69504165]
[1646793242587,0.01467172,2625.6,2625.1,11.69]
[1646793243043,0.00402459,2625.5,2625.1,11.69504165]
[1646793243442,0.00402459,2625.5,2625.1,12.64750165]
[1646793243845,0.01467172,2625.6,2625.1,0.95246]
[1646793244043,0.01467172,2625.6,2624.9,0.13819997]
[1646793244244,0.01467172,2625.6,2625.1,0.00383409]
[1646793245044,1.19826974,2625.5,2625.1,0.00383409]
[1646793245244,0.01467172,2625.6,2625.1,0.00383409]
[1646793245444,0.00401512,2625.5,2625.1,0.00503881]
[1646793245846,0.00401512,2625.5,2625.2,11.69]
[1646793246045,0.00401512,2625.5,2625.3,11.69]
[1646793246347,0.01467172,2625.6,2625.1,0.85]
[1646793246545,0.00401512,2625.5,2625.1,0.30503881]
[1646793246787,0.00401512,2625.5,2625.1,0.00503881]
[1646793247590,0.87342838,2625.3,2624.9,0.13819997]
[1646793247787,0.87342838,2625.3,2625.1,0.00487251]
[1646793247991,0.00401505,2625.5,2625.1,0.00487251]
[1646793248695,0.01467172,2625.6,2624.9,0.13819997]
[1646793248894,0.00401505,2625.5,2625.1,0.00487251]
[1646793249893,1.07208291,2625.6,2624.9,11.82819997]
[1646793250092,1.07208291,2625.6,2625.1,0.00474152]
[1646793250093,0.00357848,2625.5,2625.1,0.00474152]
[1646793250933,0.00357848,2625.5,2625.2,11.69]
[1646793251132,0.01467172,2625.6,2625.2,11.69]
[1646793251334,0.00357848,2625.5,2625.1,0.00453134]
[1646793252336,1.05017109,2625.6,2624.9,0.13819997]
[1646793252337,1.00017109,2625.6,2624.9,0.13819997]
[1646793252535,0.00685208,2625.8,2624.8,3.6904]
[1646793252737,0.00685208,2625.8,2625.1,0.00453134]
[1646793252738,0.00357848,2625.5,2625.1,0.00453134]
[1646793253541,0.00685208,2625.8,2625.0,11.69]
[1646793253740,0.00401505,2625.5,2625.1,0.00466233]
[1646793254786,0.95271739,2625.6,2625.0,11.69]
[1646793255086,0.00401505,2625.5,2625.1,0.00468817]
[1646793255888,0.00685208,2625.8,2625.0,3.5]
[1646793256086,0.00685208,2625.8,2625.1,0.00468817]
[1646793256288,0.00401505,2625.5,2625.1,0.00468817]
[1646793257189,0.00685208,2625.8,2625.0,15.19]
[1646793257388,0.00357848,2625.5,2625.1,0.00455718]
[1646793258237,0.00685208,2625.8,2625.0,12.64186801]
[1646793258439,0.00685208,2625.8,2625.2,0.9525337]
[1646793258639,0.00357848,2625.5,2625.2,0.9525337]
[1646793259441,0.00685208,2625.8,2625.2,0.9525337]
[1646793259641,1.23372897,2625.6,2625.2,0.9525337]
[1646793259838,0.93152704,2625.8,2625.2,0.9525337]
[1646793260839,0.93152704,2625.8,2625.3,11.69]
[1646793260840,0.00120798,2625.6,2625.3,11.69]
[1646793261340,0.00120798,2625.6,2625.3,3.5]
[1646793261539,0.00120798,2625.6,2625.3,15.19]
[1646793261787,0.00120798,2625.6,2625.3,11.69]
[1646793261989,0.00685208,2625.8,2625.3,11.69]
[1646793262187,0.00120798,2625.6,2625.3,11.69]
[1646793263189,0.00685208,2625.8,2625.3,11.69]
[1646793263389,0.00402659,2625.6,2625.3,11.69]
[1646793263592,0.00402659,2625.6,2625.2,0.3]
[1646793263790,0.00402659,2625.6,2625.1,11.69]
[1646793263791,0.00402659,2625.6,2625.1,11.99]
[1646793263989,0.00402659,2625.6,2625.1,11.69]
[1646793264390,0.92467496,2625.7,2625.0,11.69]
[1646793264593,0.92467496,2625.7,2625.0,0.00503912]
[1646793264594,0.00402659,2625.5,2625.0,0.00503912]
[1646793264791,0.92870155,2625.5,2625.0,0.00503912]
[1646793265189,0.92467496,2625.4,2625.0,0.00503912]
[1646793265435,0.92467496,2625.4,2624.8,0.1904]
[1646793265634,0.00402659,2625.5,2624.8,0.1904]
[1646793265635,0.92467496,2625.5,2624.8,0.1904]
[1646793265837,0.00685208,2625.8,2625.0,0.00503908]
[1646793265838,1.5,2625.2,2625.0,0.00503908]
[1646793266241,0.00402648,2625.4,2625.3,11.69]
[1646793266635,3.42361562,2625.9,2625.4,3.0]
[1646793266836,3.42361562,2625.9,2625.5,11.69]
[1646793267240,3.42361562,2625.9,2625.3,0.9524911]
[1646793267437,4.34829058,2625.9,2625.3,0.3]
[1646793267736,4.34829058,2625.9,2625.2,0.3]
[1646793268142,4.34829058,2625.9,2625.3,11.69]
[1646793268342,0.88762082,2625.7,2625.3,11.69]
[1646793268539,0.88762082,2625.7,2625.3,11.99]
[1646793268740,4.34829058,2625.9,2625.3,0.3]
[1646793268940,4.34829058,2625.9,2625.2,12.9425331]
[1646793269196,4.34829058,2625.9,2625.2,11.99]
[1646793269384,0.00401652,2625.7,2625.2,0.3]
[1646793269787,0.00401652,2625.7,2625.1,0.30486885]
[1646793270384,0.896259,2625.8,2625.1,0.3]
[1646793270588,0.00401652,2625.5,2625.1,0.00486875]
[1646793270786,0.00401652,2625.5,2625.2,11.99]
[1646793270988,0.00401652,2625.5,2625.3,11.69]
[1646793271687,0.01370416,2625.8,2625.3,11.69]
[1646793271888,0.00401652,2625.5,2625.3,11.69]
[1646793272089,0.00401652,2625.5,2625.4,11.69]
[1646793272692,0.01370416,2625.8,2625.2,11.99]
[1646793272941,0.01370416,2625.8,2625.1,1.9049188]
[1646793272942,0.93837912,2625.8,2625.1,2.2049188]